{"text_format":"3","workbook":"xlsx","n_sheets":1,"sheets":["Orçamento pessoal mensal"],"read":"whole","date_system":"1900"}

{"sheet":"Orçamento pessoal mensal","index":0,"n_rows":64,"n_cols":10,"rows_kept":64,"merged":[[1,1,1,9],[2,1,2,9],[4,1,6,1],[4,2,4,3],[4,6,5,8],[4,9,5,9],[5,2,5,3],[6,2,6,3],[6,6,7,8],[6,9,7,9],[7,1,9,1],[7,2,7,3],[8,2,8,3],[8,6,9,8],[8,9,9,9],[9,2,9,3],[22,6,22,9],[23,1,23,4],[31,6,31,9],[33,1,33,4],[38,6,38,9],[40,1,40,4],[44,6,44,9],[46,1,46,4],[50,6,50,9],[54,1,54,4],[57,6,57,9],[58,6,59,8],[58,9,59,9],[60,6,61,8],[60,9,61,9],[62,6,63,8],[62,9,63,9]]}
[]
[null,"Orçamento pessoal mensal"]
[]
[]
[null,"RENDA MENSAL PREVISTA","Renda 1",null,{"v":2500,"d":"R$ 2,500"},null,"SALDO PREVISTO (receita prevista menos despesas)",null,null,{"$f":"E7-J59","v":{"v":940,"d":"R$ 940"}}]
[null,null,"Renda extra",null,{"v":500,"d":"R$ 500"}]
[null,null,"Renda mensal total",null,{"$f":"SUM(E5:E6)","v":{"v":3000,"d":"R$ 3,000"}},null,"SALDO REAL (receita real menos despesas)",null,null,{"$f":"E10-J61","v":{"v":960,"d":"R$ 960"}}]
[null,"RENDA MENSAL REAL","Renda 1",null,{"v":2500,"d":"R$ 2,500"}]
[null,null,"Renda extra",null,{"v":500,"d":"R$ 500"},null,"DIFERENÇA (real menos prevista)",null,null,{"$f":"J7-J5","v":{"v":20,"d":"R$ 20"}}]
[null,null,"Renda mensal total",null,{"$f":"SUM(E8:E9)","v":{"v":3000,"d":"R$ 3,000"}}]
[]
[null,"MORADIA","Custo previsto","Custo Real","Diferença",null,"ENTRETENIMENTO","Custo previsto","Custo Real","Diferença"]
[null,"Hipoteca ou aluguel",{"v":1500,"d":"R$ 1,500"},{"v":1400,"d":"R$ 1,400"},{"$f":"Tabela1[[#This Row],[Custo previsto]]-Tabela1[[#This Row],[Custo Real]]","v":{"v":100,"d":"R$ 100"}},null,"Vídeo/DVD",{"v":0,"d":"R$ 0"},{"v":50,"d":"R$ 50"},{"$f":"Tabela2[[#This Row],[Custo previsto]]-Tabela2[[#This Row],[Custo Real]]","v":{"v":-50,"d":"-R$ 50"}}]
[null,"Telefone",{"v":60,"d":"R$ 60"},{"v":100,"d":"R$ 100"},{"$f":"Tabela1[[#This Row],[Custo previsto]]-Tabela1[[#This Row],[Custo Real]]","v":{"v":-40,"d":"-R$ 40"}},null,"CDs",null,null,{"$f":"Tabela2[[#This Row],[Custo previsto]]-Tabela2[[#This Row],[Custo Real]]","v":{"v":0,"d":"R$ 0"}}]
[null,"Conta de luz",{"v":50,"d":"R$ 50"},{"v":60,"d":"R$ 60"},{"$f":"Tabela1[[#This Row],[Custo previsto]]-Tabela1[[#This Row],[Custo Real]]","v":{"v":-10,"d":"-R$ 10"}},null,"Filmes",null,null,{"$f":"Tabela2[[#This Row],[Custo previsto]]-Tabela2[[#This Row],[Custo Real]]","v":{"v":0,"d":"R$ 0"}}]
[null,"Gás",{"v":200,"d":"R$ 200"},{"v":180,"d":"R$ 180"},{"$f":"Tabela1[[#This Row],[Custo previsto]]-Tabela1[[#This Row],[Custo Real]]","v":{"v":20,"d":"R$ 20"}},null,"Shows",null,null,{"$f":"Tabela2[[#This Row],[Custo previsto]]-Tabela2[[#This Row],[Custo Real]]","v":{"v":0,"d":"R$ 0"}}]
[null,"Água e esgoto",null,null,{"$f":"Tabela1[[#This Row],[Custo previsto]]-Tabela1[[#This Row],[Custo Real]]","v":{"v":0,"d":"R$ 0"}},null,"Eventos esportivos",null,null,{"$f":"Tabela2[[#This Row],[Custo previsto]]-Tabela2[[#This Row],[Custo Real]]","v":{"v":0,"d":"R$ 0"}}]
[null,"TV a cabo",null,null,{"$f":"Tabela1[[#This Row],[Custo previsto]]-Tabela1[[#This Row],[Custo Real]]","v":{"v":0,"d":"R$ 0"}},null,"Teatro ao vivo",null,null,{"$f":"Tabela2[[#This Row],[Custo previsto]]-Tabela2[[#This Row],[Custo Real]]","v":{"v":0,"d":"R$ 0"}}]
[null,"Coleta de lixo",null,null,{"$f":"Tabela1[[#This Row],[Custo previsto]]-Tabela1[[#This Row],[Custo Real]]","v":{"v":0,"d":"R$ 0"}},null,"Outros",null,null,{"$f":"Tabela2[[#This Row],[Custo previsto]]-Tabela2[[#This Row],[Custo Real]]","v":{"v":0,"d":"R$ 0"}}]
[null,"Manutenção ou reparos",null,null,{"$f":"Tabela1[[#This Row],[Custo previsto]]-Tabela1[[#This Row],[Custo Real]]","v":{"v":0,"d":"R$ 0"}},null,"Outros",null,null,{"$f":"Tabela2[[#This Row],[Custo previsto]]-Tabela2[[#This Row],[Custo Real]]","v":{"v":0,"d":"R$ 0"}}]
[null,"Suprimentos",null,null,{"$f":"Tabela1[[#This Row],[Custo previsto]]-Tabela1[[#This Row],[Custo Real]]","v":{"v":0,"d":"R$ 0"}},null,"Outros",null,null,{"$f":"Tabela2[[#This Row],[Custo previsto]]-Tabela2[[#This Row],[Custo Real]]","v":{"v":0,"d":"R$ 0"}}]
[null,"Outros",null,null,{"$f":"Tabela1[[#This Row],[Custo previsto]]-Tabela1[[#This Row],[Custo Real]]","v":{"v":0,"d":"R$ 0"}},null,"Total",{"$f":"SUBTOTAL(109,Tabela2[Custo previsto])","v":{"v":0,"d":"R$ 0"}},{"$f":"SUBTOTAL(109,Tabela2[Custo Real])","v":{"v":50,"d":"R$ 50"}},{"$f":"SUBTOTAL(109,Tabela2[Diferença])","v":{"v":-50,"d":"-R$ 50"}}]
[null,"Total",{"$f":"SUBTOTAL(109,Tabela1[Custo previsto])","v":{"v":1810,"d":"R$ 1,810"}},{"$f":"SUBTOTAL(109,Tabela1[Custo Real])","v":{"v":1740,"d":"R$ 1,740"}},{"$f":"SUBTOTAL(109,Tabela1[Diferença])","v":{"v":70,"d":"R$ 70"}}]
[{"$nulls":6},"EMPRÉSTIMOS","Custo previsto","Custo Real","Diferença"]
[null,"TRANSPORTE","Custo previsto","Custo Real","Diferença",null,"Pessoal",null,null,{"$f":"Tabela8[[#This Row],[Custo previsto]]-Tabela8[[#This Row],[Custo Real]]","v":{"v":0,"d":"R$ 0"}}]
[null,"Pagamento do veículo",{"v":250,"d":"R$ 250"},{"v":250,"d":"R$ 250"},{"$f":"Tabela3[[#This Row],[Custo previsto]]-Tabela3[[#This Row],[Custo Real]]","v":{"v":0,"d":"R$ 0"}},null,"Estudante",null,null,{"$f":"Tabela8[[#This Row],[Custo previsto]]-Tabela8[[#This Row],[Custo Real]]","v":{"v":0,"d":"R$ 0"}}]
[null,"Transporte público/táxi",null,null,{"$f":"Tabela3[[#This Row],[Custo previsto]]-Tabela3[[#This Row],[Custo Real]]","v":{"v":0,"d":"R$ 0"}},null,"Cartão de crédito",null,null,{"$f":"Tabela8[[#This Row],[Custo previsto]]-Tabela8[[#This Row],[Custo Real]]","v":{"v":0,"d":"R$ 0"}}]
[null,"Seguro",null,null,{"$f":"Tabela3[[#This Row],[Custo previsto]]-Tabela3[[#This Row],[Custo Real]]","v":{"v":0,"d":"R$ 0"}},null,"Cartão de crédito",null,null,{"$f":"Tabela8[[#This Row],[Custo previsto]]-Tabela8[[#This Row],[Custo Real]]","v":{"v":0,"d":"R$ 0"}}]
[null,"Licenciamento",null,null,{"$f":"Tabela3[[#This Row],[Custo previsto]]-Tabela3[[#This Row],[Custo Real]]","v":{"v":0,"d":"R$ 0"}},null,"Cartão de crédito",null,null,{"$f":"Tabela8[[#This Row],[Custo previsto]]-Tabela8[[#This Row],[Custo Real]]","v":{"v":0,"d":"R$ 0"}}]
[null,"Combustível",null,null,{"$f":"Tabela3[[#This Row],[Custo previsto]]-Tabela3[[#This Row],[Custo Real]]","v":{"v":0,"d":"R$ 0"}},null,"Outros",null,null,{"$f":"Tabela8[[#This Row],[Custo previsto]]-Tabela8[[#This Row],[Custo Real]]","v":{"v":0,"d":"R$ 0"}}]
[null,"Manutenção",null,null,{"$f":"Tabela3[[#This Row],[Custo previsto]]-Tabela3[[#This Row],[Custo Real]]","v":{"v":0,"d":"R$ 0"}},null,"Total",{"$f":"SUBTOTAL(109,Tabela8[Custo previsto])","v":{"v":0,"d":"R$ 0"}},{"$f":"SUBTOTAL(109,Tabela8[Custo Real])","v":{"v":0,"d":"R$ 0"}},{"$f":"SUBTOTAL(109,Tabela8[Diferença])","v":{"v":0,"d":"R$ 0"}}]
[null,"Outros",null,null,{"$f":"Tabela3[[#This Row],[Custo previsto]]-Tabela3[[#This Row],[Custo Real]]","v":{"v":0,"d":"R$ 0"}}]
[null,"Total",{"$f":"SUBTOTAL(109,Tabela3[Custo previsto])","v":{"v":250,"d":"R$ 250"}},{"$f":"SUBTOTAL(109,Tabela3[Custo Real])","v":{"v":250,"d":"R$ 250"}},{"$f":"SUBTOTAL(109,Tabela3[Diferença])","v":{"v":0,"d":"R$ 0"}},null,"IMPOSTOS","Custo previsto","Custo Real","Diferença"]
[{"$nulls":6},"Federal",null,null,{"$f":"Tabela9[[#This Row],[Custo previsto]]-Tabela9[[#This Row],[Custo Real]]","v":{"v":0,"d":"R$ 0"}}]
[null,"SEGURO","Custo previsto","Custo Real","Diferença",null,"Estadual",null,null,{"$f":"Tabela9[[#This Row],[Custo previsto]]-Tabela9[[#This Row],[Custo Real]]","v":{"v":0,"d":"R$ 0"}}]
[null,"Residencial",null,null,{"$f":"Tabela4[[#This Row],[Custo previsto]]-Tabela4[[#This Row],[Custo Real]]","v":{"v":0,"d":"R$ 0"}},null,"Local",null,null,{"$f":"Tabela9[[#This Row],[Custo previsto]]-Tabela9[[#This Row],[Custo Real]]","v":{"v":0,"d":"R$ 0"}}]
[null,"Saúde",null,null,{"$f":"Tabela4[[#This Row],[Custo previsto]]-Tabela4[[#This Row],[Custo Real]]","v":{"v":0,"d":"R$ 0"}},null,"Outros",null,null,{"$f":"Tabela9[[#This Row],[Custo previsto]]-Tabela9[[#This Row],[Custo Real]]","v":{"v":0,"d":"R$ 0"}}]
[null,"Vida",null,null,{"$f":"Tabela4[[#This Row],[Custo previsto]]-Tabela4[[#This Row],[Custo Real]]","v":{"v":0,"d":"R$ 0"}},null,"Total",{"$f":"SUBTOTAL(109,Tabela9[Custo previsto])","v":{"v":0,"d":"R$ 0"}},{"$f":"SUBTOTAL(109,Tabela9[Custo Real])","v":{"v":0,"d":"R$ 0"}},{"$f":"SUBTOTAL(109,Tabela9[Diferença])","v":{"v":0,"d":"R$ 0"}}]
[null,"Outros",null,null,{"$f":"Tabela4[[#This Row],[Custo previsto]]-Tabela4[[#This Row],[Custo Real]]","v":{"v":0,"d":"R$ 0"}}]
[null,"Total",{"$f":"SUBTOTAL(109,Tabela4[Custo previsto])","v":{"v":0,"d":"R$ 0"}},{"$f":"SUBTOTAL(109,Tabela4[Custo Real])","v":{"v":0,"d":"R$ 0"}},{"$f":"SUBTOTAL(109,Tabela4[Diferença])","v":{"v":0,"d":"R$ 0"}},null,"POUPANÇAS OU INVESTIMENTOS","Custo previsto","Custo Real","Diferença"]
[{"$nulls":6},"Aposentadoria",null,null,{"$f":"Tabela10[[#This Row],[Custo previsto]]-Tabela10[[#This Row],[Custo Real]]","v":{"v":0,"d":"R$ 0"}}]
[null,"ALIMENTAÇÃO","Custo previsto","Custo Real","Diferença",null,"Investimentos",null,null,{"$f":"Tabela10[[#This Row],[Custo previsto]]-Tabela10[[#This Row],[Custo Real]]","v":{"v":0,"d":"R$ 0"}}]
[null,"Supermercado",null,null,{"$f":"Tabela5[[#This Row],[Custo previsto]]-Tabela5[[#This Row],[Custo Real]]","v":{"v":0,"d":"R$ 0"}},null,"Outros",null,null,{"$f":"Tabela10[[#This Row],[Custo previsto]]-Tabela10[[#This Row],[Custo Real]]","v":{"v":0,"d":"R$ 0"}}]
[null,"Jantar fora",null,null,{"$f":"Tabela5[[#This Row],[Custo previsto]]-Tabela5[[#This Row],[Custo Real]]","v":{"v":0,"d":"R$ 0"}},null,"Total",{"$f":"SUBTOTAL(109,Tabela10[Custo previsto])","v":{"v":0,"d":"R$ 0"}},{"$f":"SUBTOTAL(109,Tabela10[Custo Real])","v":{"v":0,"d":"R$ 0"}},{"$f":"SUBTOTAL(109,Tabela10[Diferença])","v":{"v":0,"d":"R$ 0"}}]
[null,"Outros",null,null,{"$f":"Tabela5[[#This Row],[Custo previsto]]-Tabela5[[#This Row],[Custo Real]]","v":{"v":0,"d":"R$ 0"}}]
[null,"Total",{"$f":"SUBTOTAL(109,Tabela5[Custo previsto])","v":{"v":0,"d":"R$ 0"}},{"$f":"SUBTOTAL(109,Tabela5[Custo Real])","v":{"v":0,"d":"R$ 0"}},{"$f":"SUBTOTAL(109,Tabela5[Diferença])","v":{"v":0,"d":"R$ 0"}},null,"PRESENTES E DOAÇÕES","Custo previsto","Custo Real","Diferença"]
[{"$nulls":6},"Instituição beneficente 1",null,null,{"$f":"Tabela11[[#This Row],[Custo previsto]]-Tabela11[[#This Row],[Custo Real]]","v":{"v":0,"d":"R$ 0"}}]
[null,"ANIMAIS DE ESTIMAÇÃO","Custo previsto","Custo Real","Diferença",null,"Instituição beneficente 2",null,null,{"$f":"Tabela11[[#This Row],[Custo previsto]]-Tabela11[[#This Row],[Custo Real]]","v":{"v":0,"d":"R$ 0"}}]
[null,"Alimentação",null,null,{"$f":"Tabela6[[#This Row],[Custo previsto]]-Tabela6[[#This Row],[Custo Real]]","v":{"v":0,"d":"R$ 0"}},null,"Instituição beneficente 3",null,null,{"$f":"Tabela11[[#This Row],[Custo previsto]]-Tabela11[[#This Row],[Custo Real]]","v":{"v":0,"d":"R$ 0"}}]
[null,"Médico",null,null,{"$f":"Tabela6[[#This Row],[Custo previsto]]-Tabela6[[#This Row],[Custo Real]]","v":{"v":0,"d":"R$ 0"}},null,"Total",{"$f":"SUBTOTAL(109,Tabela11[Custo previsto])","v":{"v":0,"d":"R$ 0"}},{"$f":"SUBTOTAL(109,Tabela11[Custo Real])","v":{"v":0,"d":"R$ 0"}},{"$f":"SUBTOTAL(109,Tabela11[Diferença])","v":{"v":0,"d":"R$ 0"}}]
[null,"Banho e tosa",null,null,{"$f":"Tabela6[[#This Row],[Custo previsto]]-Tabela6[[#This Row],[Custo Real]]","v":{"v":0,"d":"R$ 0"}}]
[null,"Brinquedos",null,null,{"$f":"Tabela6[[#This Row],[Custo previsto]]-Tabela6[[#This Row],[Custo Real]]","v":{"v":0,"d":"R$ 0"}},null,"ASSESSORIA JURÍDICA","Custo previsto","Custo Real","Diferença"]
[null,"Outros",null,null,{"$f":"Tabela6[[#This Row],[Custo previsto]]-Tabela6[[#This Row],[Custo Real]]","v":{"v":0,"d":"R$ 0"}},null,"Advogado",null,null,{"$f":"Tabela12[[#This Row],[Custo previsto]]-Tabela12[[#This Row],[Custo Real]]","v":{"v":0,"d":"R$ 0"}}]
[null,"Total",{"$f":"SUBTOTAL(109,Tabela6[Custo previsto])","v":{"v":0,"d":"R$ 0"}},{"$f":"SUBTOTAL(109,Tabela6[Custo Real])","v":{"v":0,"d":"R$ 0"}},{"$f":"SUBTOTAL(109,Tabela6[Diferença])","v":{"v":0,"d":"R$ 0"}},null,"Pensão alimentícia",null,null,{"$f":"Tabela12[[#This Row],[Custo previsto]]-Tabela12[[#This Row],[Custo Real]]","v":{"v":0,"d":"R$ 0"}}]
[{"$nulls":6},"Pagamentos em garantia ou julgamento",null,null,{"$f":"Tabela12[[#This Row],[Custo previsto]]-Tabela12[[#This Row],[Custo Real]]","v":{"v":0,"d":"R$ 0"}}]
[null,"CUIDADOS PESSOAIS","Custo previsto","Custo Real","Diferença",null,"Outros",null,null,{"$f":"Tabela12[[#This Row],[Custo previsto]]-Tabela12[[#This Row],[Custo Real]]","v":{"v":0,"d":"R$ 0"}}]
[null,"Médico",null,null,{"$f":"Tabela7[[#This Row],[Custo previsto]]-Tabela7[[#This Row],[Custo Real]]","v":{"v":0,"d":"R$ 0"}},null,"Total",{"$f":"SUBTOTAL(109,Tabela12[Custo previsto])","v":{"v":0,"d":"R$ 0"}},{"$f":"SUBTOTAL(109,Tabela12[Custo Real])","v":{"v":0,"d":"R$ 0"}},{"$f":"SUBTOTAL(109,Tabela12[Diferença])","v":{"v":0,"d":"R$ 0"}}]
[null,"Cabelo/unhas",null,null,{"$f":"Tabela7[[#This Row],[Custo previsto]]-Tabela7[[#This Row],[Custo Real]]","v":{"v":0,"d":"R$ 0"}}]
[null,"Vestuário",null,null,{"$f":"Tabela7[[#This Row],[Custo previsto]]-Tabela7[[#This Row],[Custo Real]]","v":{"v":0,"d":"R$ 0"}},null,"CUSTO TOTAL PREVISTO",null,null,{"$f":"SUM(C23,C33,C40,C46,C54,C64,H22,H31,H38,H44,H50,H57)","v":{"v":2060,"d":"R$ 2,060"}}]
[null,"Lavagem a seco",null,null,{"$f":"Tabela7[[#This Row],[Custo previsto]]-Tabela7[[#This Row],[Custo Real]]","v":{"v":0,"d":"R$ 0"}}]
[null,"Academia",null,null,{"$f":"Tabela7[[#This Row],[Custo previsto]]-Tabela7[[#This Row],[Custo Real]]","v":{"v":0,"d":"R$ 0"}},null,"CUSTO TOTAL REAL",null,null,{"$f":"SUM(D23,D33,D40,D46,D54,D64,I22,I31,I38,I44,I50,I57)","v":{"v":2040,"d":"R$ 2,040"}}]
[null,"Impostos ou taxas de organização",null,null,{"$f":"Tabela7[[#This Row],[Custo previsto]]-Tabela7[[#This Row],[Custo Real]]","v":{"v":0,"d":"R$ 0"}}]
[null,"Outros",null,null,{"$f":"Tabela7[[#This Row],[Custo previsto]]-Tabela7[[#This Row],[Custo Real]]","v":{"v":0,"d":"R$ 0"}},null,"DIFERENÇA TOTAL",null,null,{"$f":"SUM(E23,E33,E40,E46,E54,E64,J22,J31,J38,J44,J50,J57)","v":{"v":20,"d":"R$ 20"}}]
[null,"Total",{"$f":"SUBTOTAL(109,Tabela7[Custo previsto])","v":{"v":0,"d":"R$ 0"}},{"$f":"SUBTOTAL(109,Tabela7[Custo Real])","v":{"v":0,"d":"R$ 0"}},{"$f":"SUBTOTAL(109,Tabela7[Diferença])","v":{"v":0,"d":"R$ 0"}}]